fUST/lending_fUST_20240718
["ID","MTS","AMOUNT","RATE_DAILY","PERIOD"]
[332489433,1721256648820,-500.0,0.00021917,2]
[332489434,1721256648830,-500.0,0.00021917,2]
[332489435,1721256648841,-410.7879559,0.00021917,2]
[332489436,1721256648851,-500.0,0.00021917,2]
[332489437,1721256648861,-500.0,0.00021917,2]
[332489438,1721256648871,-500.0,0.00021917,2]
[332489439,1721256648880,-500.0,0.00021917,2]
[332489440,1721256648891,-500.0,0.00021917,2]
[332489441,1721256648901,-500.0,0.00021917,2]
[332489442,1721256648910,-500.0,0.00021917,2]
[332489443,1721256648921,-511.74924614,0.00021917,2]
[332489444,1721256648931,-500.0,0.00021917,2]
[332489445,1721256648941,-304.57578418,0.00021917,2]
[332489446,1721256648951,-500.0,0.00021917,2]
[332489447,1721256648961,-500.0,0.00021917,2]
[332489448,1721256648975,-500.0,0.00021917,2]
[332489449,1721256648985,-500.0,0.00021917,2]
[332489450,1721256648995,-500.0,0.00021917,2]
[332489451,1721256649005,-500.0,0.00021917,2]
[332489452,1721256649015,-500.0,0.00021917,2]
[332489453,1721256649024,-500.0,0.00021917,2]
[332489454,1721256649035,-500.0,0.00021917,2]
[332489455,1721256649047,-500.0,0.00021917,2]
[332489456,1721256649057,-500.0,0.00021917,2]
[332489457,1721256649067,-500.0,0.00021917,2]
[332489458,1721256649078,-500.0,0.00021917,2]
[332489459,1721256649088,-500.0,0.00021917,2]
[332489460,1721256649097,-500.0,0.00021917,2]
[332489461,1721256649109,-530.72723451,0.00021917,2]
[332489462,1721256649120,-500.0,0.00021917,2]
[332489463,1721256649130,-508.95478055,0.00021917,2]
[332489464,1721256649140,-500.0,0.00021917,2]
[332489465,1721256649150,-500.0,0.00021917,2]
[332489466,1721256649160,-500.0,0.00021917,2]
[332489467,1721256649170,-172.65384079,0.00021917,2]
[332489468,1721256649179,-500.0,0.00021917,2]
[332489469,1721256649190,-500.0,0.00021917,2]
[332489470,1721256649199,-500.0,0.00021917,2]
[332489471,1721256649209,-500.0,0.00021917,2]
[332489472,1721256649220,-500.0,0.00021917,2]
[332489473,1721256649235,-502.95656582,0.00021917,2]
[332489474,1721256649362,-529.81,0.00021917,2]
[332489475,1721256649372,-500.0,0.00021917,2]
[332489476,1721256649381,-552.40873163,0.00021917,2]
[332489477,1721256649390,-500.0,0.00021917,2]
[332489478,1721256649399,-500.0,0.00021917,2]
[332489479,1721256649408,-534.72582949,0.00021917,2]
[332489480,1721256649419,-500.0,0.00021917,2]
[332489481,1721256649428,-500.0,0.00021917,2]
[332489482,1721256649438,-541.11063668,0.00021917,2]
[332489483,1721256649449,-500.0,0.00021917,2]
[332489484,1721256649460,-500.0,0.00021917,2]
[332489485,1721256649470,-500.0,0.00021917,2]
[332489486,1721256649481,-517.13487491,0.00021917,2]
[332489487,1721256649491,-521.58916709,0.00021917,2]
[332489488,1721256649501,-500.0,0.00021917,2]
[332489489,1721256649510,-500.0,0.00021917,2]
[332489490,1721256649520,-648.32,0.00021917,2]
[332489491,1721256649530,-500.0,0.00021917,2]
[332489492,1721256649540,-500.0,0.00021917,2]
[332489493,1721256649551,-406.39696685,0.00021917,2]
[332489494,1721256649560,-500.0,0.00021917,2]
[332489495,1721256649570,-526.23571842,0.00021917,2]
[332489496,1721256649580,-601.88746937,0.00021917,2]
[332489497,1721256649591,-500.0,0.00021917,2]
[332489498,1721256649602,-604.26,0.00021917,2]
[332489499,1721256649612,-500.0,0.00021917,2]
[332489500,1721256649623,-500.0,0.00021917,2]
[332489501,1721256649634,-520.38679063,0.00021917,2]
[332489502,1721256649644,-500.0,0.00021917,2]
[332489503,1721256649654,-600.23529488,0.00021917,2]
[332489504,1721256649663,-500.0,0.00021917,2]
[332489505,1721256649674,-500.0,0.00021917,2]
[332489506,1721256649683,-500.0,0.00021917,2]
[332489507,1721256649693,-500.0,0.00021917,2]
[332489508,1721256649703,-500.0,0.00021917,2]
[332489509,1721256649714,-500.0,0.00021917,2]
[332489510,1721256649727,-500.0,0.00021917,2]
[332489511,1721256649737,-500.0,0.00021917,2]
[332489512,1721256649747,-179.74795842,0.00021917,2]
[332489513,1721256649756,-500.0,0.00021917,2]
[332489514,1721256649766,-500.0,0.00021917,2]
[332489515,1721256649776,-500.0,0.00021917,2]
[332489516,1721256649787,-500.0,0.00021917,2]
[332489517,1721256649796,-500.0,0.00021917,2]
[332489518,1721256649807,-500.0,0.00021917,2]
[332489519,1721256649819,-500.0,0.00021917,2]
[332489520,1721256649828,-500.0,0.00021917,2]
[332489521,1721256649838,-298.52792145,0.00021917,2]
[332489522,1721256649849,-500.00313708,0.00021917,2]
[332489523,1721256649859,-500.0,0.00021917,2]
[332489524,1721256649869,-503.27331606,0.00021917,2]
[332489525,1721256649879,-512.12401173,0.00021917,2]
[332489526,1721256649890,-500.0,0.00021917,2]
[332489527,1721256649900,-500.0,0.00021917,2]
[332489528,1721256649909,-1335.2,0.00021917,2]
[332489529,1721256649918,-500.0,0.00021917,2]
[332489530,1721256649928,-500.0,0.00021917,2]
[332489531,1721256649938,-500.0,0.00021917,2]
[332489532,1721256649949,-500.0,0.00021917,2]
[332489533,1721256649958,-680.48,0.00021917,2]
[332489534,1721256649969,-500.04157604,0.00021917,2]
[332489535,1721256649979,-500.0,0.00021917,2]
[332489536,1721256649989,-511.52776106,0.00021917,2]
[332489537,1721256649999,-146.66886271,0.00021917,2]
[332489585,1721257832564,-1627.48050603,0.00019809,2]
[332489587,1721257832577,-639.1398293,0.0001981,2]
[332489589,1721257832587,-165.980972,0.00020616,2]
[332489591,1721257832596,-165.980972,0.00020693,2]
[332489593,1721257832607,-165.980972,0.0002077,2]
[332489595,1721257832616,-151.0,0.00020806,2]
[332489597,1721257832625,-4249.30516945,0.00020842,2]
[332489599,1721257832634,-165.980972,0.00020846,2]
[332489601,1721257832643,-165.980972,0.00020923,2]
[332489603,1721257832655,-300.0,0.00020999,2]
[332489605,1721257832665,-356.72066227,0.00020999,2]
[332489607,1721257832674,-402.05223661,0.00020999,2]
[332489609,1721257832683,-165.980972,0.00021,2]
[332489611,1721257832692,-4089.06655166,0.00021,2]
[332490157,1721257838615,-30392.19075326,0.00021,2]
[332490201,1721257843510,-5830.30298199,0.00021,2]
[332490223,1721257846730,-325.33863209,0.00021,2]
[332490310,1721259038794,-1231.65657271,0.00018899,2]
[332490311,1721259038805,-1627.48050603,0.00018899,2]
[332490312,1721259038817,-511.22505035,0.000189,2]
[332490313,1721259038827,-165.980972,0.00019538,2]
[332490314,1721259038837,-165.980972,0.00019665,2]
[332490315,1721259038848,-165.980972,0.00019792,2]
[332490316,1721259038859,-165.980972,0.0001992,2]
[332490317,1721259038870,-153.0,0.0002,2]
[332490318,1721259038879,-153.0,0.0002,2]
[332490319,1721259038889,-153.0,0.0002,2]
[332490320,1721259038899,-153.0,0.0002,2]
[332490321,1721259038908,-357.4995829,0.00020007,2]
[332490322,1721259038918,-165.980972,0.00020047,2]
[332490323,1721259038932,-300.0,0.000201,2]
[332490324,1721259038943,-4249.30516945,0.00020101,2]
[332490325,1721259038953,-165.980972,0.00020174,2]
[332490326,1721259038965,-4249.30516945,0.00020299,2]
[332490327,1721259038980,-1636.98995052,0.000203,2]
[332490328,1721259038992,-165.980972,0.00020301,2]
[332490329,1721259039001,-165.980972,0.00020429,2]
[332490330,1721259039011,-357.4995829,0.0002043,2]
[332490331,1721259039020,-242.2625822,0.00020478,2]
[332490332,1721259039029,-165.980972,0.00020556,2]
[332490333,1721259039039,-357.4995829,0.00020597,2]
[332490334,1721259039050,-153.0,0.000206,2]
[332490335,1721259039061,-153.0,0.000206,2]
[332490336,1721259039070,-153.0,0.000206,2]
[332490337,1721259039080,-153.0,0.000206,2]
[332490338,1721259039090,-153.0,0.000206,2]
[332490339,1721259039100,-153.0,0.000206,2]
[332490340,1721259039109,-533.61474575,0.00020677,2]
[332490341,1721259039119,-159.8885354,0.00020677,2]
[332490342,1721259039129,-828.65736599,0.00020677,2]
[332490343,1721259039138,-4249.30516946,0.00020678,2]
[332490344,1721259039148,-500.16014949,0.00020989,2]
[332490345,1721259039157,-2696.0957278,0.0002099,3]
[332490346,1721259039167,-195.41,0.0002099,3]
[332490347,1721259039179,-586.23,0.0002099,3]
[332490348,1721259039187,-155.80945652,0.00020999,4]
[332490349,1721259039197,-1278.23818184,0.00021,5]
[332490350,1721259039207,-8077.03668456,0.00021,2]
[332490377,1721259040814,-2557.39540312,0.00021,2]
[332490379,1721259040860,-15131.98063867,0.00021,2]
[332490403,1721259043690,-18049.37761736,0.00021,2]
[332490520,1721259815130,2400.0,0.00021,30]
[332490525,1721260176246,-254.78807879,0.00018508,2]
[332490558,1721260231937,-37.83777821,0.00018508,2]
[332490559,1721260231949,-1627.48050603,0.00018538,2]
[332490560,1721260231960,-9299.9929492,0.00018539,2]
[332490561,1721260231970,-358.3260617,0.00018687,2]
[332490562,1721260231982,-601.43169765,0.000189,2]
[332490563,1721260231993,-1220.08046805,0.00018906,2]
[332490574,1721260237914,-196.228497,0.00018843,2]
[332490575,1721260237924,-1779.91953195,0.00018906,2]
[332490576,1721260237934,-161.636338,0.00019178,2]
[332490577,1721260237946,-609.6965354,0.00019392,2]
[332490578,1721260237956,-4175.7958124,0.00019548,2]
[332490579,1721260237965,-8668.0360483,0.00019548,2]
[332490580,1721260237975,-992.61120669,0.00019966,2]
[332490581,1721260237995,-3679.90359873,0.00020388,2]
[332490582,1721260238004,-347.8044533,0.00020452,2]
[332490583,1721260238013,-156.42124676,0.00020655,2]
[332490584,1721260238022,-206.4665977,0.00020656,2]
[332490585,1721260238032,-206.4665977,0.00020656,2]
[332490586,1721260238041,-206.4665977,0.00020656,2]
[332490587,1721260238050,-319.53653133,0.00020656,2]
[332490588,1721260238059,-3679.90359873,0.00020722,2]
[332490589,1721260238068,-327.98822062,0.00020761,2]
[332490606,1721260239850,-19.81623268,0.00020761,2]
[332490607,1721260239860,-500.0,0.00020999,2]
[332490608,1721260239871,-394.35688689,0.00020999,2]
[332490609,1721260239883,-565.9136791,0.00020999,2]
[332490610,1721260239894,-639.11909092,0.00021,5]
[332490611,1721260239905,-29295.67751268,0.00021,2]
[332490612,1721260239917,-6992.96242863,0.00021,2]
[332490613,1721260239926,-12186.33678693,0.00021,2]
[332490614,1721260239939,-312.2633,0.00021,2]
[332490623,1721260242833,-196.228497,0.00018895,2]
[332490624,1721260242843,-196.228497,0.00018946,2]
[332490625,1721260242853,-196.228497,0.00018998,2]
[332490626,1721260242863,-196.228497,0.0001905,2]
[332490627,1721260242872,-196.228497,0.00019101,2]
[332490628,1721260242881,-196.228497,0.00019153,2]
[332490629,1721260242890,-196.228497,0.00019205,2]
[332490630,1721260242900,-196.228497,0.00019256,2]
[332490631,1721260242909,-196.228497,0.00019308,2]
[332490632,1721260242918,-196.228497,0.0001936,2]
[332490633,1721260242927,-9.52804731,0.00019411,2]
[332490661,1721260245763,-186.70044969,0.00019411,2]
[332490662,1721260245772,-196.228497,0.00019463,2]
[332490663,1721260245781,-196.228497,0.00019515,2]
[332490664,1721260245791,-196.228497,0.00019566,2]
[332490665,1721260245800,-196.228497,0.00019618,2]
[332490666,1721260245809,-196.228497,0.0001967,2]
[332490667,1721260245819,-196.228497,0.00019721,2]
[332490668,1721260245828,-196.228497,0.00019773,2]
[332490669,1721260245838,-196.228497,0.00019825,2]
[332490670,1721260245848,-206.4665977,0.00020656,2]
[332490671,1721260245858,-211.5186256,0.00020999,2]
[332490672,1721260245867,-6928.7730539,0.00021,2]
[332490673,1721260245877,-287.51223328,0.00021,2]
[332490674,1721260245889,-151.0,0.00021042,2]
[332490675,1721260245899,-573.027418,0.00021096,2]
[332490676,1721260245908,-151.0,0.0002128,2]
[332490677,1721260245918,-206.4665977,0.00021478,2]
[332490678,1721260245927,-206.4665977,0.00021478,2]
[332490679,1721260245937,-206.4665977,0.00021478,2]
[332490680,1721260245947,-206.4665977,0.00021478,2]
[332490681,1721260245959,-206.4665977,0.00021478,2]
[332490682,1721260245969,-411.4785535,0.00021478,2]
[332490683,1721260245979,-151.0,0.00021517,2]
[332490684,1721260245990,-390.82,0.00021581,3]
[332490685,1721260245999,-402.60952539,0.0002159,2]
[332490686,1721260246009,-7140.77758442,0.00021591,3]
[332490688,1721260246018,-271.71552786,0.000216,2]
[332490690,1721260246027,-150.0,0.00021601,2]
[332490691,1721260246037,-504.0,0.00021601,2]
[332490693,1721260246046,-1407.0,0.00021601,2]
[332490694,1721260246056,-311.68126,0.00021697,2]
[332490695,1721260246066,-550.78353455,0.00021699,2]
[332490696,1721260246076,-13181.65465626,0.00021699,2]
[332490697,1721260246085,-1186.073593,0.000217,2]
[332490698,1721260246095,-151.0,0.00021754,2]
[332490699,1721260246104,-526.56704613,0.00021816,2]
[332490700,1721260246114,-5390.78324846,0.00021817,3]
[332490701,1721260246123,-2000.0,0.00021817,2]
[332490702,1721260246132,-3089.34407009,0.00021817,2]
[332490703,1721260246141,-500.38800306,0.00021828,2]
[332490704,1721260246150,-620.00240498,0.00021829,2]
[332490705,1721260246160,-7140.77758442,0.0002189,3]
[332490706,1721260246169,-374.0,0.000219,2]
[332490707,1721260246178,-748.0,0.000219,2]
[332490708,1721260246187,-748.0,0.000219,2]
[332490709,1721260246197,-28880.9929,0.000219,2]
[332490710,1721260246207,-3000.0,0.000219,2]
[332490711,1721260246217,-151.0,0.000219,2]
[332490712,1721260246226,-151.0,0.000219,2]
[332490713,1721260246235,-289.545363,0.000219,2]
[332490714,1721260246244,-289.545363,0.000219,2]
[332490715,1721260246253,-151.0,0.000219,2]
[332490716,1721260246263,-151.0,0.000219,2]
[332490717,1721260246272,-3000.0,0.0002191,2]
[332490718,1721260246282,-500.0,0.00021916,2]
[332490719,1721260246292,-500.0,0.00021916,2]
[332490720,1721260246301,-565.41560341,0.00021916,2]
[332490721,1721260246313,-171.31720185,0.00021916,2]
[332490722,1721260246324,-296.38988609,0.00021916,2]
[332490723,1721260246333,-500.0,0.00021916,2]
[332490724,1721260246343,-500.0,0.00021916,2]
[332490725,1721260246352,-500.0,0.00021916,2]
[332490726,1721260246362,-500.0,0.00021916,2]
[332490727,1721260246375,-1043.69980669,0.00021916,2]
[332490728,1721260246384,-22769.01829007,0.00021917,5]
[332490729,1721260246396,-353.33113729,0.00021917,2]
[332490730,1721260246405,-500.0,0.00021917,2]
[332490731,1721260246414,-344.78956675,0.00021917,2]
[332490732,1721260246424,-500.0,0.00021917,2]
[332490733,1721260246434,-500.0,0.00021917,2]
[332490734,1721260246443,-500.0,0.00021917,2]
[332490735,1721260246455,-500.0,0.00021917,2]
[332490736,1721260246465,-500.0,0.00021917,2]
[332490737,1721260246475,-500.0,0.00021917,2]
[332490738,1721260246484,-500.0,0.00021917,2]
[332490739,1721260246493,-500.0,0.00021917,2]
[332490740,1721260246503,-500.0,0.00021917,2]
[332490741,1721260246512,-916.69,0.00021917,2]
[332490742,1721260246522,-500.0,0.00021917,2]
[332490743,1721260246532,-500.0,0.00021917,2]
[332490744,1721260246541,-500.0,0.00021917,2]
[332490745,1721260246551,-500.0,0.00021917,2]
[332490746,1721260246560,-500.0,0.00021917,2]
[332490747,1721260246569,-3519.1,0.00021917,2]
[332490748,1721260246579,-500.0,0.00021917,2]
[332490749,1721260246588,-500.0,0.00021917,2]
[332490750,1721260246597,-260.31649132,0.00021917,2]
[332490751,1721260246607,-500.0,0.00021917,2]
[332490752,1721260246617,-500.0,0.00021917,2]
[332490753,1721260246627,-549.48536045,0.00021917,2]
[332490754,1721260246637,-500.0,0.00021917,2]
[332490755,1721260246647,-634.46,0.00021917,2]
[332490756,1721260246656,-540.1013767,0.00021917,2]
[332490757,1721260246666,-500.0,0.00021917,2]
[332490758,1721260246675,-500.0,0.00021917,2]
[332490759,1721260246685,-500.0,0.00021917,2]
[332490760,1721260246695,-500.0,0.00021917,2]
[332490761,1721260246705,-354.8589622,0.00021917,2]
[332490762,1721260246715,-500.0,0.00021917,2]
[332490763,1721260246724,-500.0,0.00021917,2]
[332490764,1721260246733,-500.0,0.00021917,2]
[332490765,1721260246742,-500.0,0.00021917,2]
[332490766,1721260246752,-500.0,0.00021917,2]
[332490767,1721260246761,-500.0,0.00021917,2]
[332490768,1721260246770,-500.0,0.00021917,2]
[332490769,1721260246779,-610.97,0.00021917,2]
[332490770,1721260246788,-500.0,0.00021917,2]
[332490771,1721260246798,-500.0,0.00021917,2]
[332490772,1721260246807,-500.0,0.00021917,2]
[332490773,1721260246816,-500.0,0.00021917,2]
[332490774,1721260246825,-493.91709769,0.00021917,2]
[332490889,1721261438018,-1627.48050603,0.00019776,2]
[332490890,1721261438027,-2334.38870077,0.00019777,2]
[332490891,1721261438038,-626.0880851,0.00019817,2]
[332490892,1721261438050,-824.040122,0.00019838,2]
[332490893,1721261438059,-2590.6962987,0.00019864,2]
[332490894,1721261438068,-162.201631,0.00020047,2]
[332490895,1721261438079,-19286.4448193,0.00020088,2]
[332490896,1721261438090,-2101.28699501,0.00020113,2]
[332490918,1721261442107,-2773.13910739,0.00020113,2]
[332490919,1721261442118,-159.528528,0.00020114,2]
[332490920,1721261442127,-160.714286,0.0002046,2]
[332490921,1721261442137,-160.714286,0.00020542,2]
[332490922,1721261442147,-160.714286,0.00020624,2]
[332490923,1721261442358,-160.714286,0.00020706,2]
[332490924,1721261442368,-160.714286,0.00020788,2]
[332490925,1721261442377,-160.714286,0.0002087,2]
[332490926,1721261442386,-160.714286,0.00020952,2]
[332490927,1721261442395,-160.714286,0.00021034,2]
[332490928,1721261442405,-608.767689,0.00021096,2]
[332490930,1721261442417,-412.9331954,0.00021096,2]
[332490932,1721261442426,-160.714286,0.00021116,2]
[332490934,1721261442435,-160.714286,0.00021198,2]
[332490936,1721261442446,-160.714286,0.0002128,2]
[332490937,1721261442455,-160.714286,0.00021362,2]
[332490939,1721261442464,-293.79355816,0.00021443,2]
[332490940,1721261442473,-160.714286,0.00021444,2]
[332490942,1721261442483,-201.24834811,0.00021525,2]
[332490943,1721261442492,-160.714286,0.00021526,2]
[332490944,1721261442502,-150.0,0.00021693,2]
[332490945,1721261442511,-504.0,0.00021693,2]
[332490946,1721261442521,-1407.0,0.00021693,2]
[332490947,1721261442531,-155.84063,0.00021697,2]
[332490948,1721261442541,-936.36994736,0.00021775,2]
[332490950,1721261442550,-347.8044533,0.00021785,2]
[332490952,1721261442560,-3679.90359873,0.00021888,2]
[332490954,1721261442569,-180.84,0.00021897,3]
[332490956,1721261442578,-542.57,0.00021897,3]
[332490958,1721261442588,-374.0,0.000219,2]
[332490961,1721261442600,-748.0,0.000219,2]
[332490963,1721261442610,-748.0,0.000219,2]
[332490966,1721261442619,-3000.0,0.000219,2]
[332490968,1721261442628,-5306.48235486,0.00021907,3]
[332491009,1721261651491,239.68350868,9.999e-05,2]
[332491010,1721261718371,19427.37314083,9.999e-05,2]
[332491011,1721261727363,10332.94335049,9.999e-05,2]
[332491012,1721261727387,9094.42979034,9.999e-05,2]
[332491013,1721261778874,19427.37314083,0.0001212,2]
[332491014,1721261793219,1634.59229075,0.0001212,2]
[332491015,1721261793885,19427.37314083,0.0001212,2]
[332491016,1721261853881,14508.62426586,0.00014691,2]
[332491017,1721262101580,3773.09344064,0.00014691,2]
[332491018,1721262162406,1627.48050603,0.0001,2]
[332491019,1721262207914,1055.97476438,0.00012121,2]
[332491020,1721262268947,50000.0,0.000225,30]
[332491021,1721262291717,50000.0,0.000225,30]
[332491031,1721262600195,151.0,0.00025,120]
[332491039,1721262632649,-500.38800306,0.00017999,2]
[332491041,1721262632660,-500.46525571,0.00017999,2]
[332491043,1721262632674,-451.19,0.00017999,2]
[332491078,1721262638439,-92.04455098,0.00017999,2]
[332491079,1721262638450,-2351.07522014,0.00018,2]
[332491080,1721262638497,-15672.41338843,0.00018,2]
[332491081,1721262638510,-320.36344441,0.00018,2]
[332491082,1721262638522,-21656.14794702,0.00018,2]
[332491083,1721262638532,-1535.48627894,0.00019954,2]
[332491084,1721262638542,-293.68788523,0.00020054,2]
[332491085,1721262638552,-228.7,0.00020055,2]
[332491086,1721262638561,-228.7,0.00020252,2]
[332491087,1721262638571,-417.39205674,0.000204,2]
[332491088,1721262638580,-228.7,0.0002045,2]
[332491089,1721262638590,-153.0,0.00020641,2]
[332491091,1721262638599,-153.0,0.00020641,2]
[332491092,1721262638609,-228.7,0.00020648,2]
[332491093,1721262638620,-1535.48627888,0.00020732,2]
[332491094,1721262638630,-228.7,0.00020845,2]
[332491096,1721262638640,-153.0,0.00021041,2]
[332491098,1721262638649,-228.7,0.00021043,2]
[332491100,1721262638659,-228.7,0.00021241,2]
[332491102,1721262638668,-306.0,0.0002137,2]
[332491104,1721262638678,-228.7,0.00021438,2]
[332491106,1721262638688,-453.60434196,0.00021635,2]
[332491108,1721262638697,-228.7,0.00021636,2]
[332491110,1721262638707,-719.78,0.00021691,2]
[332491112,1721262638717,-150.0,0.00021691,2]
[332491114,1721262638728,-504.0,0.00021691,2]
[332491115,1721262638738,-155.8406301,0.00021697,2]
[332491116,1721262638747,-241.7849,0.00021807,2]
[332491117,1721262638757,-228.7,0.00021834,2]
[332491118,1721262638767,-151.0,0.00021834,2]
[332491119,1721262638776,-247.8,0.00021897,3]
[332491120,1721262638786,-743.4,0.00021897,3]
[332491121,1721262638796,-374.0,0.000219,2]
[332491122,1721262638805,-748.0,0.000219,2]
[332491123,1721262638815,-748.0,0.000219,2]
[332491124,1721262638825,-3000.0,0.000219,2]
[332491125,1721262638835,-3901.90513803,0.00021907,3]
[332491134,1721262640778,-1535.48627888,0.0002151,2]
[332491135,1721262640788,-5095.68221949,0.00021907,3]
[332491136,1721262640800,-12685.77553399,0.00021907,3]
[332491152,1721262643140,-2386.07474856,0.00021907,3]
[332491155,1721262643152,-6767.67306239,0.00021907,3]
[332491209,1721262646172,-5256.72397243,0.00021907,3]
[332491215,1721263808861,785.0808126,0.00025,120]
[332491287,1721263840634,-499.70444235,0.00017999,2]
[332491288,1721263840644,-160.0,0.0002101,3]
[332491289,1721263840654,-578.329304,0.00021096,2]
[332491290,1721263840665,-160.0,0.00021605,4]
[332491291,1721263840674,-504.0,0.00021692,2]
[332491292,1721263840683,-250.0,0.00021692,2]
[332491293,1721263840693,-635.81849737,0.00021721,2]
[332491294,1721263840703,-959.6789243,0.00021817,2]
[332491295,1721263840712,-151.0,0.00021834,2]
[332491296,1721263840722,-500.29979552,0.00021877,2]
[332491297,1721263840732,-492.98180621,0.00021899,2]
[332491298,1721263840741,-374.0,0.000219,2]
[332491299,1721263840751,-748.0,0.000219,2]
[332491300,1721263840761,-748.0,0.000219,2]
[332491301,1721263840770,-3000.0,0.000219,2]
[332491302,1721263840780,-156.44613062,0.00021906,2]
[332491303,1721263840790,-161.66328205,0.00021906,2]
[332491304,1721263840799,-6992.96242863,0.00021907,2]
[332491305,1721263840809,-3000.0,0.0002191,2]
[332491306,1721263840818,-9186.05262441,0.00021917,5]
[332491328,1721263843598,-502.08805947,0.00021917,5]
[332491329,1721263843611,-1696.36846115,0.00021917,5]
[332491330,1721263843622,-597.13318967,0.00021917,5]
[332491332,1721263843636,-905.07891066,0.00021917,5]
[332491382,1721265032828,-258.18004786,0.00019796,2]
[332491385,1721265032842,-31.35149058,0.00019796,2]
[332491387,1721265032852,-500.38800306,0.00019799,2]
[332491389,1721265032862,-278.26137116,0.00019817,2]
[332491391,1721265032876,-162.2,0.00020028,2]
[332491393,1721265032886,-162.2,0.00020228,2]
[332491395,1721265032897,-162.2,0.00020428,2]
[332491397,1721265032906,-162.2,0.00020628,2]
[332491399,1721265032916,-162.2,0.00020828,2]
[332491401,1721265032925,-162.2,0.00021028,2]
[332491403,1721265032934,-171.454883,0.00021096,2]
[332491405,1721265032943,-549.412838,0.00021096,2]
[332491407,1721265032952,-162.2,0.00021228,2]
[332491409,1721265032961,-162.2,0.00021428,2]
[332491411,1721265032971,-87.5976072,0.00021629,2]
[332491414,1721265032982,-74.6023928,0.00021629,2]
[332491416,1721265032993,-150.086,0.00021692,2]
[332491418,1721265033004,-150.0,0.00021693,2]
[332491420,1721265033014,-504.0,0.00021693,2]
[332491422,1721265033023,-1407.0,0.00021693,2]
[332491424,1721265033032,-162.2,0.00021829,2]
[332491426,1721265033042,-150.112233,0.000219,2]
[332491428,1721265033051,-374.0,0.000219,2]
[332491430,1721265033060,-748.0,0.000219,2]
[332491432,1721265033069,-748.0,0.000219,2]
[332491434,1721265033080,-215.78411716,0.000219,2]
[332491600,1721266238966,-419.10331056,0.000197,2]
[332491601,1721266238976,-286.67549415,0.000198,2]
[332491602,1721266238986,-152.4,0.00020014,2]
[332491603,1721266238995,-152.4,0.00020215,2]
[332491604,1721266239004,-166.666667,0.00020385,2]
[332491605,1721266239013,-152.4,0.00020417,2]
[332491606,1721266239220,-218.84648962,0.00020596,2]
[332491607,1721266239231,-166.666667,0.00020597,2]
[332491608,1721266239240,-152.4,0.00020618,2]
[332491609,1721266239251,-166.666667,0.0002081,2]
[332491610,1721266239262,-152.4,0.0002082,2]
[332491611,1721266239273,-152.4,0.00021021,2]
[332491612,1721266239285,-166.666667,0.00021022,2]
[332491613,1721266239295,-563.520004,0.00021096,2]
[332491614,1721266239304,-152.4,0.00021222,2]
[332491615,1721266239314,-166.666667,0.00021235,2]
[332491616,1721266239325,-9794.35895003,0.0002137,5]
[332491617,1721266239336,-153.0,0.0002137,2]
[332491618,1721266239346,-587.1382988,0.0002137,2]
[332491619,1721266239359,-229.3624,0.0002137,2]
[332491620,1721266239370,-199.2933423,0.0002137,2]
[332491621,1721266239379,-206.4665977,0.0002137,2]
[332491622,1721266239389,-153.0,0.0002137,2]
[332491623,1721266239398,-153.0,0.0002137,2]
[332491624,1721266239407,-206.4665977,0.0002137,2]
[332491625,1721266239416,-153.0,0.0002137,2]